lending/lending_fUSD_20241012
["ID","MTS","AMOUNT","RATE_DAILY","PERIOD"]
[340169612,1728746795265,150.1088,9.965e-05,2]
[340169613,1728746795290,1114.57646724,9.965e-05,2]
[340169614,1728746801342,503.36,8.219e-05,2]
[340169621,1728746888330,21822.81,0.00010035,2]
[340169627,1728746919004,150.0,0.0001,2]
[340169648,1728746993421,1000.0,9.952e-05,2]
[340169657,1728747031865,-300.1651,0.00010346,2]
[340169658,1728747031876,-627.3952,0.00010378,2]
[340169659,1728747031885,-374.20473276,0.00010446,2]
[340169660,1728747031894,-503.36,0.00010474,2]
[340169661,1728747031903,-150.0,0.00010731,2]
[340169662,1728747031912,-150.0,0.00010772,2]
[340169663,1728747031921,-748.45701455,0.0001078,2]
[340169664,1728747031930,-150.0,0.00010823,2]
[340169665,1728747031939,-150.0,0.00010829,2]
[340169666,1728747031948,-150.0,0.00010834,2]
[340169667,1728747031958,-150.0,0.00010851,2]
[340169668,1728747031967,-499.99,0.00010851,2]
[340169669,1728747031976,-150.0,0.00010899,2]
[340169670,1728747031985,-1422.4903,0.000109,2]
[340169671,1728747031994,-2532.61156998,0.000109,2]
[340169672,1728747032007,-576.02,0.000109,2]
[340169673,1728747032025,-902.99942409,0.000109,2]
[340169674,1728747032036,-1085.77980063,0.000109,2]
[340169675,1728747032063,-19344.6230053,0.000109,2]
[340169676,1728747032072,-1636.9819,0.000109,2]
[340169677,1728747032082,-299.7167,0.000109,2]
[340169678,1728747032091,-184.71542486,0.000109,2]
[340169679,1728747032101,-10676.98671801,0.000109,2]
[340169680,1728747032112,-249.5250707,0.000109,2]
[340169681,1728747032124,-214.34015758,0.00010928,2]
[340169682,1728747032133,-150.0,0.00010928,2]
[340169683,1728747032143,-150.0,0.00010933,2]
[340169684,1728747032153,-150.0,0.00010939,2]
[340169685,1728747032163,-150.0,0.00010942,2]
[340169686,1728747032172,-150.0,0.00010943,2]
[340169687,1728747032181,-233.146,0.00010945,2]
[340169688,1728747032190,-163.791,0.00010945,2]
[340169689,1728747032199,-150.0,0.00010948,2]
[340169690,1728747032208,-150.0,0.00010949,2]
[340169691,1728747032217,-226.85,0.00010959,2]
[340169692,1728747032226,-255.4,0.00010959,2]
[340169693,1728747032235,-482.47,0.00010959,2]
[340169694,1728747032244,-250.0,0.00010959,2]
[340169696,1728747032385,-816.9,0.00010959,2]
[340169697,1728747032401,-500.0,0.00010973,2]
[340169698,1728747032410,-150.0,0.00010973,2]
[340169699,1728747032420,-150.0,0.00010985,2]
[340169700,1728747032429,-150.0,0.00010994,2]
[340169701,1728747032438,-180.6264333,0.00010995,2]
[340169702,1728747032448,-11145.24195112,0.00010995,2]
[340169703,1728747032457,-222.3383568,0.00010995,2]
[340169704,1728747032466,-3405.6180479,0.00010995,2]
[340169705,1728747032475,-560.0,0.00010996,2]
[340169706,1728747032484,-935.0,0.00010996,2]
[340169707,1728747032494,-1908.0,0.00010996,2]
[340169708,1728747032503,-555.0,0.00010996,2]
[340169709,1728747032512,-3356.0,0.00010996,2]
[340169710,1728747032522,-808.0,0.00010996,2]
[340169711,1728747032531,-700.665,0.00010996,2]
[340169712,1728747032540,-626.0,0.00010996,2]
[340169713,1728747032549,-150.0,0.00010996,2]
[340169714,1728747032559,-812.0,0.00010996,2]
[340169715,1728747032568,-193.8295338,0.00010999,2]
[340169716,1728747032578,-233.52777272,0.00010999,2]
[340169717,1728747032587,-500.0,0.00010999,2]
[340169718,1728747032596,-574.91768371,0.00010999,2]
[340169719,1728747032606,-376.43805713,0.00010999,2]
[340169720,1728747032615,-122272.10328628,0.00011,2]
[340169721,1728747032625,-1011549.45533985,0.00011,2]
[340169722,1728747032641,-1308.0,0.00011,2]
[340169723,1728747032654,-20294.7714111,0.00011,2]
[340169724,1728747032672,-1589.6455,0.00011,2]
[340169725,1728747032683,-4973.59999999,0.00011,2]
[340169726,1728747037863,-449.0,0.00010996,2]
[340169727,1728747037872,-840.99776016,0.00010996,2]
[340169728,1728747037885,-403.00223984,0.00010996,2]
[340169729,1728747037894,-1862.20552905,0.00011,2]
[340169730,1728747037905,-1082.14649661,0.00011,2]
[340169731,1728747037916,-5355.07790151,0.00011,2]
[340169732,1728747037928,-1522.63335757,0.00011,2]
[340169733,1728747038339,-11676.78754871,0.00011,2]
[340169753,1728747039698,-688.5,0.00011,2]
[340169754,1728747039709,-987.54270914,0.00011,2]
[340169755,1728747039724,-4729.0105623,0.00011,2]
[340169756,1728747039735,-2554.34123814,0.00011,2]
[340169757,1728747039747,-1145.19149778,0.00011,2]
[340169758,1728747039758,-6753.51311033,0.00011,2]
[340169759,1728747039768,-362.78211077,0.00011,2]
[340169760,1728747039781,-324.99651763,0.00011,2]
[340169761,1728747039793,-12792.79637757,0.00011,2]
[340169762,1728747039808,-485.28526725,0.00011,2]
[340169763,1728747039819,-460.89263148,0.00011,2]
[340169764,1728747039830,-31656.84344985,0.00011,2]
[340169765,1728747039843,-1629.83238255,0.00011,2]
[340169766,1728747039858,-451152.8182269,0.00011,2]
[340169767,1728747039919,-93995.86695843,0.00011,2]
[340169768,1728747039930,-453.16590618,0.00011,2]
[340169769,1728747039941,-2809.89847193,0.00011,2]
[340169770,1728747039952,-1202.06254944,0.00011,2]
[340169771,1728747039964,-367.90000008,0.00011,2]
[340169772,1728747040061,-12712.64464041,0.00011,2]
[340169773,1728747040073,-521.59343028,0.00011,2]
[340169796,1728747042851,-132466.63409,0.00011,2]
[340169797,1728747043056,-785.79577899,0.00011,2]
[340169801,1728747045795,-635.685897,0.00011,2]
[340169802,1728747045934,-641.337702,0.00011,2]
[340169803,1728747045983,-1840.87450557,0.00011,2]
[340169804,1728747045994,-328.465,0.00011,2]
[340169805,1728747046006,-131024.87940769,0.00011,2]
[340169806,1728747046017,-458.52,0.00011,2]
[340169808,1728747173123,250.74,0.0001014,2]
[340169809,1728747201222,250.0,0.00010077,2]
[340169810,1728747296967,2428.1,0.00010077,2]
[340169811,1728747331375,484.68,8.219e-05,2]
[340169812,1728747430252,161.77,0.00010021,2]
[340169813,1728747579727,250.0,9.978e-05,2]
[340169814,1728747613886,1000.0,9.974e-05,2]
[340169815,1728747687845,1204.1372008,0.000102,2]
[340169816,1728747758216,150.0,0.0001,2]
[340169817,1728747758238,150.0,0.0001,2]
[340169818,1728747758258,159.38712958,0.0001,2]
[340169819,1728747758279,234.37,0.0001,2]
[340169820,1728747758303,51125.85348342,0.0001,2]
[340169821,1728747761238,500.0,0.0001023,2]
[340169822,1728747777817,172.93,9.968e-05,2]
[340169823,1728747830887,73.72712958,0.00010188,2]
[340169824,1728747830909,265.43,0.00010188,2]
[340169825,1728747830935,137.18407042,0.00010188,2]
[340169826,1728747864025,-500.0,0.0001024,2]
[340169827,1728747864049,-177.06,0.00010242,2]
[340169828,1728747864072,-322.94,0.0001048,2]
[340169829,1728747865880,-300.0,0.00010738,2]
[340169830,1728747865903,-700.0,0.00010739,2]
[340169831,1728747867158,-1000.0,0.00010739,2]
[340169832,1728747868318,-1000.0,0.00010739,2]
[340169833,1728747869304,-1000.0,0.00010739,2]
[340169834,1728747870388,-1000.0,0.00010739,2]
[340169835,1728747871346,-1000.0,0.00010739,2]
[340169836,1728747872594,-1000.0,0.00010739,2]
[340169837,1728747873682,-1000.0,0.00010739,2]
[340169838,1728747874652,-1000.0,0.00010739,2]
[340169839,1728747878904,456.63,8.219e-05,2]
[340169840,1728747899733,-456.63,0.00010477,2]
[340169841,1728747899754,-333.7827,0.0001068,2]
[340169842,1728747899775,-209.5873,0.00010739,2]
[340169843,1728747901782,-1000.0,0.00010739,2]
[340169844,1728747903139,-1000.0,0.00010739,2]
[340169845,1728747904174,-1000.0,0.00010739,2]
[340169846,1728747905227,-1000.0,0.00010739,2]
[340169847,1728747909010,-200.0,0.00010739,2]
[340169848,1728747943555,-1000.0,0.00010639,2]
[340169849,1728747948590,-900.0,0.00010639,2]
[340169850,1728747988465,150.0,0.00010015,2]
[340169851,1728747988488,245.54,0.00010015,2]
[340169852,1728747988511,150.0,0.00010015,2]
[340169853,1728747988532,150.0,0.00010015,2]
[340169854,1728747988553,150.0,0.00010015,2]
[340169855,1728747988574,150.0,0.00010015,2]
[340169856,1728747988599,22894.46,0.00010015,2]
[340169859,1728748030270,-500.0,0.0001059,2]
[340169893,1728748157429,198.18,9.966e-05,2]
[340169920,1728748186698,1.82,9.858e-05,2]
[340169921,1728748186717,148.18,9.858e-05,2]
[340170186,1728748231969,-689.30241408,0.00010377,2]
[340170189,1728748232031,-5861.39648592,0.00010377,2]
[340170190,1728748232041,-388.17962542,0.00010639,2]
[340170191,1728748232051,-150.0,0.00010739,2]
[340170192,1728748232060,-300.0,0.00010789,2]
[340170193,1728748232069,-150.0,0.0001079,2]
[340170194,1728748232079,-464.28,0.0001079,2]
[340170195,1728748232088,-8086.52072177,0.0001079,2]
[340170196,1728748232097,-150.0,0.00010822,2]
[340170197,1728748232107,-150.0,0.00010837,2]
[340170198,1728748232116,-499.99,0.00010873,2]
[340170199,1728748232126,-150.0,0.00010889,2]
[340170200,1728748232135,-11729.19226693,0.0001089,2]
[340170201,1728748232145,-168.43382,0.00010893,2]
[340170202,1728748232155,-299.99,0.00010899,2]
[340170203,1728748232165,-164.31834027,0.00010899,2]
[340170204,1728748232175,-7500.0,0.000109,2]
[340170205,1728748232184,-184.71542486,0.000109,2]
[340170206,1728748232193,-500.0,0.00010912,2]
[340170207,1728748232203,-225.119,0.00010948,2]
[340170208,1728748232214,-377.43,0.00010959,2]
[340170209,1728748232223,-159.94,0.00010959,2]
[340170210,1728748232232,-478.95,0.00010959,2]
[340170211,1728748232243,-385.97,0.00010959,2]
[340170212,1728748232252,-250.0,0.00010959,2]
[340170213,1728748232261,-160.07,0.00010959,2]
[340170214,1728748232270,-150.0,0.0001097,2]
[340170215,1728748232280,-161.16905358,0.00010973,2]
[340170216,1728748232290,-500.0,0.00010973,2]
[340170217,1728748232299,-151.0740969,0.00010973,2]
[340170218,1728748232308,-500.0,0.00010973,2]
[340170219,1728748232319,-262814.40813551,0.00010986,2]
[340170220,1728748232328,-185.8585152,0.00010995,2]
[340170221,1728748232338,-2806.4033949,0.00010995,2]
[340170222,1728748232348,-150.5220277,0.00010995,2]
[340170223,1728748232357,-626.0,0.00010996,2]
[340170224,1728748232366,-449.0,0.00010996,2]
[340170225,1728748232376,-812.0,0.00010996,2]
[340170226,1728748232387,-1244.0,0.00010996,2]
[340170227,1728748232397,-560.0,0.00010996,2]
[340170228,1728748232407,-935.0,0.00010996,2]
[340170229,1728748232416,-1908.0,0.00010996,2]
[340170230,1728748232426,-2865.333,0.00010996,2]
[340170231,1728748232436,-555.0,0.00010996,2]
[340170232,1728748232446,-808.0,0.00010996,2]
[340170233,1728748232456,-1456.631,0.00010996,2]
[340170234,1728748232466,-150.0,0.00010996,2]
[340170235,1728748232475,-150.0,0.00010996,2]
[340170236,1728748232485,-500.0,0.00010999,2]
[340170237,1728748232495,-584.32666022,0.00010999,2]
[340170238,1728748232506,-500.0,0.00010999,2]
[340170239,1728748232515,-500.0,0.00010999,2]
[340170240,1728748232525,-285.56186214,0.00010999,2]
[340170241,1728748232535,-165191.65398556,0.00011,2]
[340170242,1728748232547,-1058.62655971,0.00011,2]
[340170243,1728748232559,-695.96577847,0.00011,2]
[340170244,1728748232571,-16404.02422153,0.00011,2]
[340170247,1728748238071,-1263.01261502,0.00010539,2]
[340170248,1728748238081,-1738.37976504,0.00011,2]
[340170249,1728748238235,-976.19437236,0.00011,2]
[340170250,1728748238450,-508.81680488,0.00011,2]
[340170253,1728748240185,-2399.999999,0.00011,2]
[340170254,1728748240197,-2480.0,0.00011,2]
[340170255,1728748241159,-198.77953194,0.00011,2]
[340170279,1728748243042,-606.43,0.00011,2]
[340170287,1728748245982,-905.685915,0.00011,2]
[340170288,1728748246040,-256.36108389,0.00011,2]
[340170289,1728748246154,-272.05001592,0.00011,2]
[340170290,1728748246260,-10042.11061774,0.00011,2]
[340170291,1728748246271,-6850.75276523,0.00011,2]
[340170296,1728748325764,101.82,0.00010207,2]
[340170297,1728748325789,898.18,0.00010207,2]
[340170300,1728748380688,150.0,0.00010183,2]
[340170301,1728748380712,100.0,0.00010183,2]
[340170302,1728748391825,512.08,8.243e-05,2]
[340170303,1728748562787,200.0,0.0001,2]
[340170304,1728748576735,11.67,0.00010139,2]
[340170305,1728748576756,150.0,0.00010139,2]
[340170306,1728748576779,54.13,0.00010139,2]
[340170307,1728748594523,200.0,0.00010139,2]
[340170308,1728748637341,9.17,8.664e-05,2]
[340170309,1728748637361,175.99,8.664e-05,2]
[340170310,1728748637384,314.84,8.664e-05,2]
[340170311,1728748670851,223.74,0.00010099,2]
[340170312,1728748674452,161.77,0.00010099,2]
[340170314,1728748813838,250.0,0.00010104,2]
[340170315,1728748864491,439.22,0.00010165,2]
[340170316,1728748914252,200.0,0.00010104,2]
[340170317,1728748927395,-512.08,0.00010507,2]
[340170318,1728748927415,-353.03694084,0.0001078,2]
[340170319,1728748927437,-3872.8351,0.000108,2]
[340170320,1728748927613,-3249.61949075,0.000108,2]
[340170321,1728748927637,-764.08028216,0.000109,2]
[340170322,1728748927660,-300.0,0.00010905,2]
[340170323,1728748927682,-626.0,0.00010906,2]
[340170324,1728748927703,-10753.822,0.00010906,2]
[340170325,1728748927724,-1082.0,0.00010906,2]
[340170326,1728748927745,-935.0,0.00010906,2]
[340170327,1728748927766,-560.0,0.00010906,2]
[340170328,1728748927787,-3353.0,0.00010906,2]
[340170329,1728748927808,-2304.18456413,0.00010906,2]
[340170330,1728748927829,-500.0,0.00010912,2]
[340170331,1728748927851,-1654.643,0.00010912,2]
[340170332,1728748927870,-555.0,0.00010912,2]
[340170333,1728748927890,-803.826,0.00010912,2]
[340170334,1728748927910,-802.51,0.00010959,2]
[340170335,1728748927934,-250.0,0.00010959,2]
[340170336,1728748927958,-239.39,0.00010959,2]
[340170337,1728748927979,-500.0,0.00010973,2]
[340170338,1728748927999,-500.0,0.00010973,2]
[340170339,1728748928020,-210.977,0.00010994,2]
[340170340,1728748928040,-150.0,0.00010994,2]
[340170341,1728748928064,-499.99,0.00010995,2]
[340170342,1728748928087,-155.5881919,0.00010995,2]
[340170343,1728748928106,-231.0635156,0.00010995,2]
[340170344,1728748928130,-277.06251989,0.00010995,2]
[340170345,1728748928150,-245.2822777,0.00010995,2]
[340170346,1728748928176,-3720.916616,0.00010995,2]
[340170347,1728748928198,-752.6101388,0.00010995,2]
[340170348,1728748928220,-150.0,0.00010996,2]
[340170349,1728748928240,-150.0,0.00010996,2]
[340170350,1728748928260,-812.0,0.00010996,2]
[340170351,1728748928279,-449.0,0.00010996,2]
[340170352,1728748928299,-1244.0,0.00010996,2]
[340170353,1728748928320,-150.0,0.00010996,2]
[340170354,1728748928341,-189.6347253,0.00010997,2]
[340170355,1728748928362,-140.84763693,0.00010999,2]
[340170356,1728749204161,7961.27789992,0.0001,2]
[340170432,1728749386862,551.46,8.273e-05,2]
[340170433,1728749397923,219.61,0.00010171,2]
[340170434,1728749425021,840.0,0.00010135,2]
[340170435,1728749428039,250.0,0.00010135,2]
[340170436,1728749435370,-208.85,0.00010525,2]
[340170437,1728749435379,-154.89,0.0001053,2]
[340170438,1728749435389,-551.46,0.00010537,2]
[340170439,1728749435398,-3063.46,0.00010544,2]
[340170440,1728749435407,-155.15,0.00010579,2]
[340170441,1728749435417,-250.0,0.00010652,2]
[340170442,1728749435427,-300.0,0.00010899,2]
[340170443,1728749435436,-6116.9772,0.000109,2]
[340170444,1728749435445,-43492.3591,0.000109,2]
[340170445,1728749435455,-2500.0,0.000109,2]
[340170446,1728749435466,-687.67225398,0.000109,2]
[340170447,1728749435475,-250.0,0.00010959,2]
[340170448,1728749435485,-252.7301994,0.00010995,2]
[340170449,1728749435494,-6747.6659647,0.00010995,2]
[340170450,1728749435503,-499.99,0.00010995,2]
[340170451,1728749435514,-192.5529296,0.00010995,2]
[340170452,1728749435523,-777.94096,0.00010995,2]
[340170454,1728749435533,-150.0,0.00010996,2]
[340170455,1728749435542,-218.2685487,0.00010999,2]
[340170457,1728749435551,-406.18346347,0.00010999,2]
[340170459,1728749435561,-300.0,0.00010999,2]
[340170460,1728749435571,-524.0,0.00011,2]
[340170461,1728749435580,-2842.88420316,0.00011,2]
[340170462,1728749435600,-303.4456781,0.00011,2]
[340170463,1728749435611,-295.6043219,0.00011,2]
[340170465,1728749438306,-1173.98706814,0.00011,2]
[340170466,1728749438318,-2065.88764727,0.00011,2]
[340170467,1728749438342,-10706.13012033,0.00011,2]
[340170468,1728749438396,-6003.29343999,0.00011,2]
[340170596,1728749440175,-20410.21731038,0.00011,2]
[340170602,1728749440229,-88410.68010517,0.00011,2]
[340170609,1728749440386,-1523.41173755,0.00011,2]
[340170610,1728749440397,-3643.69967106,0.00011,2]
[340170612,1728749440408,-744.62,0.00011,2]
[340170614,1728749440419,-1324.4925647,0.00011,2]
[340170616,1728749440430,-2211.355052,0.00011,2]
[340170618,1728749440440,-953.09999994,0.00011,2]
[340170620,1728749440451,-520.6652574,0.00011,2]
[340170666,1728749443262,-1429.93115254,0.00011,2]
[340170668,1728749443368,-57966.03426995,0.00011,2]
[340170669,1728749443379,-497.90396752,0.00011,2]
[340170672,1728749446183,-3117.5,0.00011,2]
[340170673,1728749446194,-1296.0605,0.00011,2]
[340170677,1728749494506,500.0,8.664e-05,2]
[340170678,1728749496918,522.81863614,8.664e-05,2]
[340170680,1728749519743,561.16062622,0.0001,30]
[340170681,1728749899845,594.83,8.219e-05,2]
[340170682,1728749954206,250.0,9.712e-05,2]
[340170683,1728749961949,312.43,9.712e-05,2]
[340170684,1728749993401,328.0,9.712e-05,2]
[340170685,1728750059708,250.0,9.728e-05,2]
[340170686,1728750228645,3705.96,9.716e-05,2]
[340170692,1728750394252,609.42,8.219e-05,2]
[340170725,1728750479024,1869.63986873,0.0001,2]
[340170732,1728750531903,178.99,9.746e-05,2]
[340170733,1728750533982,156.21,9.754e-05,2]
[340170743,1728750573672,250.0,9.748e-05,2]
[340170755,1728750632414,-609.42,0.00010463,2]
[340170756,1728750632423,-153.92,0.00010546,2]
[340170757,1728750632433,-2411.95,0.00010553,2]
[340170758,1728750632442,-2411.95,0.00010556,2]
[340170759,1728750632453,-923.658581,0.00010558,2]
[340170760,1728750632465,-1488.291419,0.00010558,2]
[340170761,1728750632476,-2411.95,0.00010561,2]
[340170762,1728750632485,-2411.95,0.00010564,2]
[340170763,1728750632495,-510.47148155,0.00010567,2]
[340170764,1728750632506,-324.2343219,0.00010567,2]
[340170765,1728750632519,-1577.24419655,0.00010567,2]
[340170766,1728750632529,-1262.75580375,0.0001057,2]
[340170767,1728750632541,-1149.19419625,0.0001057,2]
[340170768,1728750632550,-721.49,0.0001057,2]
[340170769,1728750632562,-2411.95,0.00010572,2]
[340170770,1728750632572,-354.07,0.00010572,2]
[340170771,1728750632581,-499.99,0.00010572,2]
[340170772,1728750632590,-2411.95,0.00010575,2]
[340170773,1728750632599,-1415.31196254,0.00010578,2]
[340170780,1728750638378,-996.63803746,0.00010578,2]
[340170781,1728750638387,-2411.95,0.00010581,2]
[340170782,1728750638397,-2411.95,0.00010583,2]
[340170783,1728750638406,-2411.95,0.00010586,2]
[340170784,1728750638416,-2411.95,0.00010589,2]
[340170785,1728750638426,-2411.95,0.00010592,2]
[340170786,1728750638435,-2411.95,0.00010594,2]
[340170787,1728750638445,-2411.95,0.00010597,2]
[340170788,1728750638455,-150.0,0.00010599,2]
[340170789,1728750638464,-2411.95,0.000106,2]
[340170790,1728750638473,-2411.95,0.00010603,2]
[340170791,1728750638482,-2411.95,0.00010606,2]
[340170792,1728750638491,-282.5287,0.000109,2]
[340170793,1728750638500,-159.42797736,0.000109,2]
[340170794,1728750638509,-7414.51822708,0.000109,2]
[340170795,1728750638525,-4059.32519846,0.000109,2]
[340170796,1728750638537,-1414.17,0.000109,2]
[340170797,1728750638551,-599.375,0.000109,2]
[340170798,1728750638563,-445.42957939,0.000109,2]
[340170799,1728750638573,-603.15285,0.000109,2]
[340170800,1728750638584,-1599.21665465,0.000109,2]
[340170801,1728750638608,-2252.52733061,0.000109,2]
[340170802,1728750638619,-410.82807031,0.000109,2]
[340170803,1728750638629,-544.61761896,0.000109,2]
[340170804,1728750638640,-698.11046372,0.000109,2]
[340170805,1728750638651,-2796.43585773,0.000109,2]
[340170806,1728750638660,-1000.0,0.000109,2]
[340170807,1728750638669,-314.88001939,0.000109,2]
[340170808,1728750638678,-871.5381625,0.000109,2]
[340170809,1728750638687,-328.0,0.00010926,2]
[340170810,1728750638696,-642.0,0.00010959,2]
[340170811,1728750638705,-159.94,0.00010959,2]
[340170812,1728750638714,-270.55,0.00010959,2]
[340170813,1728750638724,-168.782,0.00010959,2]
[340170814,1728750638733,-178.99,0.00010964,2]
[340170815,1728750638742,-4872.3873558,0.00010995,2]
[340170816,1728750638751,-160.4607747,0.00010995,2]
[340170817,1728750638760,-41.34592252,0.00010995,2]
[340170818,1728750638772,-169.26257698,0.00010995,2]
[340170819,1728750638781,-935.0,0.00010996,2]
[340170820,1728750638790,-560.0,0.00010996,2]
[340170821,1728750638800,-751.445,0.00010996,2]
[340170822,1728750638809,-555.0,0.00010996,2]
[340170823,1728750638818,-449.0,0.00010996,2]
[340170824,1728750638827,-626.0,0.00010996,2]
[340170825,1728750638837,-1271.896,0.00010996,2]
[340170826,1728750638846,-150.0,0.00010996,2]
[340170827,1728750638856,-812.0,0.00010996,2]
[340170828,1728750638865,-189.6347253,0.00010997,2]
[340170829,1728750638875,-2985.38905917,0.00010999,2]
[340170830,1728750638885,-184.88317457,0.00010999,2]
[340170831,1728750638894,-74691.93301807,0.00011,2]
[340170832,1728750638906,-670.91304256,0.00011,2]
[340170833,1728750638923,-538.71737971,0.00011,2]
[340170834,1728750638934,-19453.41639563,0.00011,2]
[340170889,1728750643246,-1406.70650592,0.00011,2]
[340170890,1728750643361,-140128.78703825,0.00011,2]
[340170891,1728750643372,-355.29667219,0.00011,2]
[340170892,1728750643382,-300.3247022,0.00011,2]
[340170893,1728750643391,-797488.80729373,0.00011,2]
[340170894,1728750643401,-2608964.62686949,0.00011,2]
[340170895,1728750643410,-452575.91745133,0.00011,2]
[340170896,1728750643420,-966720.43831329,0.00011,2]
[340170897,1728750643430,-714691.8962231,0.00011,2]
[340170898,1728750643442,-1040.26083,0.00011,2]
[340170899,1728750643583,-3492.353753,0.00011,2]
[340170900,1728750643594,-440.81900017,0.00011,2]
[340170917,1728750683611,500.0,8.664e-05,2]
[340170918,1728751037418,590.99,8.67e-05,2]
[340170919,1728751089987,250.0,0.00010234,2]
[340170920,1728751135187,156.21,0.00010214,2]
[340170921,1728751529117,561.44,8.295e-05,2]
[340170922,1728751627646,1254.07,0.0001018,2]
[340170923,1728751633590,250.0,0.0001018,2]
[340170930,1728751648895,162.81,0.0001017,2]
[340170943,1728751658649,250.0,0.0001017,2]
[340170944,1728751703282,259.11,0.00010203,2]
[340170946,1728751777473,1000.0,0.00010231,2]
[340170947,1728751791351,152.0,0.00012618,10]
[340170948,1728751791674,152.0,0.00012359,9]
[340170949,1728751791965,152.0,0.000121,8]
[340170950,1728751792264,152.0,0.0001184,7]
[340170951,1728751792587,152.0,0.00011581,6]
[340170952,1728751792886,152.0,0.00011322,5]
[340170953,1728751793188,152.0,0.00011063,4]
[340170954,1728751793492,152.0,0.00010803,3]
[340170975,1728751831474,-561.44,0.00010559,2]
[340170976,1728751831484,-154.89,0.00010588,2]
[340170977,1728751831493,-252.8748098,0.000108,2]
[340170978,1728751831503,-289.5953,0.000109,2]
[340170979,1728751831512,-7235.1147,0.000109,2]
[340170980,1728751831521,-6574.78665828,0.000109,2]
[340170981,1728751831530,-3655.01130698,0.000109,2]
[340170982,1728751831539,-150.0,0.00010904,2]
[340170983,1728751831549,-161.1,0.00010959,2]
[340170984,1728751831559,-513.6,0.00010959,2]
[340170985,1728751831568,-227.42,0.00010959,2]
[340170986,1728751831578,-773.32,0.00010959,2]
[340170987,1728751831587,-175.5070829,0.00010995,2]
[340170988,1728751831740,-2590.4717836,0.00010995,2]
[340170989,1728751831750,-150.0,0.00010995,2]
[340170990,1728751831760,-802.3038737,0.00010995,2]
[340170991,1728751831769,-626.0,0.00010996,2]
[340170992,1728751831779,-808.31860401,0.00010996,2]
[340170993,1728751831795,-3.68139599,0.00010996,2]
[340170994,1728751831804,-1244.0,0.00010996,2]
[340170995,1728751831814,-212.78714308,0.00010996,2]
[340170996,1728751831825,-236.21285692,0.00010996,2]
[340170997,1728751831834,-560.0,0.00010996,2]
[340170998,1728751831844,-935.0,0.00010996,2]
[340170999,1728751831854,-1908.0,0.00010996,2]
[340171000,1728751831864,-319.959,0.00010996,2]
[340171001,1728751831873,-555.0,0.00010996,2]
[340171002,1728751831883,-808.0,0.00010996,2]
[340171003,1728751831891,-150.0,0.00010996,2]
[340171004,1728751831900,-635.741,0.00010996,2]
[340171005,1728751831909,-150.0,0.00010996,2]
[340171006,1728751831919,-168.782,0.00010999,2]
[340171007,1728751831928,-503.63562102,0.00010999,2]
[340171008,1728751831938,-257.04620124,0.00010999,2]
[340171009,1728751831947,-521.0,0.00011,2]
[340171010,1728751831956,-53023.06252273,0.00011,2]
[340171013,1728751837800,-1012.32519145,0.00011,2]
[340171014,1728751837811,-56268.19905604,0.00011,2]
[340171049,1728751838938,-107897.83927191,0.00011,2]
[340171050,1728751838947,-646320.17072439,0.00011,2]
[340171051,1728751838963,-510179.01176686,0.00011,2]
[340171052,1728751838973,-3956.82863314,0.00011,2]